Cogmind - Beta 9.3 @@@ ROGUE MODE // 2020.01.06 @ 17:29:46 // Winter2019/RPGLIKE Player: PyroDawn Result: Destroyed by L-31 Rogue with Katana Performance ------------- Evolutions (2) 1000 Regions Visited (4) 800 Robots Destroyed (0) 0 Value Destroyed (0) 0 Prototype IDs (6) 120 Alien Tech Used (0) 0 Bonus (470) 470 TOTAL SCORE: 2390 Bonus ------- Pacifist 470 Cogmind --------- Core Integrity 0/900 Matter 265/300 Energy 36/100 System Corruption 0% Temperature Cool (0) Movement Core (50) Location -8/Materials Parts ------- > --- POWER (1) -------- (None) > --- PROPULSION (1) --- (None) > --- UTILITY (3) ------ Experimental Sensor Array Improved ECM Suite Improved Shield Generator > --- WEAPON (1) ------- (None) > --- INVENTORY (0) ---- (None) Peak State ------------ > --- POWER ------------ (None) > --- PROPULSION ------- (None) > --- UTILITY ---------- Experimental Sensor Array Improved ECM Suite Improved Shield Generator > --- WEAPON ----------- (None) > --- INVENTORY -------- (None) [Rating: 13] Favorites ----------- Power None Propulsion None Utility Improved Shield Generator Device Improved Shield Generator Protection Core Shielding Weapon None Build | -11 -10 -9 -9 -8 ------- Run | Scr Mat Mat Min Mat Slots Evolved 2 | . . . 1 1 Power . | . . . . . Propulsion . | . . . . . Utility 2 | . . . 1 1 Weapon . | . . . . . Parts Attached 6 | . . 1 1 4 Power . | . . . . . Engine . | . . . . . Core . | . . . . . Reactor . | . . . . . Propulsion . | . . . . . Treads . | . . . . . Leg . | . . . . . Wheel . | . . . . . Hover . | . . . . . Flight . | . . . . . Utility 6 | . . 1 1 4 Device 4 | . . . 1 3 Storage . | . . . . . Processor . | . . . . . Hackware . | . . . . . Protection 2 | . . 1 . 1 Artifact . | . . . . . Weapon . | . . . . . Energy Gun . | . . . . . Energy Cannon . | . . . . . Ballistic Gun . | . . . . . Ballistic Cannon . | . . . . . Launcher . | . . . . . Special Weapon . | . . . . . Impact Weapon . | . . . . . Slashing Weapon . | . . . . . Piercing Weapon . | . . . . . Special Melee Weapon . | . . . . . Unidentified Prototypes 1 | . . . 1 . Parts Lost 1 | . . . . 1 Power . | . . . . . Propulsion . | . . . . . Utility 1 | . . . . 1 Weapon . | . . . . . Highest Loss Streak 1 | . . . . 1 Average Slot Usage (%) 36 | . . 25 33 45 Device 21 | . . . 11 31 Protection 14 | . . 25 22 12 Naked Turns 47 | . 39 8 . . Heaviest Build 9 | . . 1 2 9 Greatest Support 13 | 3 13 13 13 13 Greatest Overweight (x) . | . . . . . Average Overweight (x) . | . . . . . Largest Inventory Capacity . | . . . . . Average Capacity . | . . . . . Most Carried . | . . . . . Average Carried . | . . . . . Final Capacity . | . . . . . Final Carried . | . . . . . Class Distribution -------------------- 100% | Hacker-Mutant Dominant Class ---------------- Hacker-Mutant | -10/Materials Hacker-Mutant | -9/Materials Hacker-Mutant | -9/Mines Hacker-Mutant | -8/Materials Resources | -11 -10 -9 -9 -8 ----------- Run | Scr Mat Mat Min Mat Matter Collected 220 | 200 . . 20 . Remotely . | . . . . . Salvage Created . | . . . . . Parts . | . . . . . Haulers Intercepted . | . . . . . Recyclers Shooed . | . . . . . Parts Field Recycled . | . . . . . Retrieved Matter . | . . . . . Parts Self-Destructed . | . . . . . Prevented . | . . . . . Kills | -11 -10 -9 -9 -8 ------- Run | Scr Mat Mat Min Mat Combat Hostiles Destroyed . | . . . . . Classes Destroyed . | . . . . . Best Kill Streak . | . . . . . Combat Bots Only . | . . . . . Max Kills in Single Turn . | . . . . . Gunslinging . | . . . . . Exploded . | . . . . . Melee . | . . . . . Uniques/NPCs Destroyed . | . . . . . Combat | -11 -10 -9 -9 -8 -------- Run | Scr Mat Mat Min Mat Damage Taken 1024 | . 100 158 . 766 Core 922 | . 100 132 . 690 Absorbed by Shields 102 | . . . . 102 Redirected to Core 177 | . . . . 177 Core Remaining (%) 81 | 100 83 . 61 . Volleys Fired . | . . . . . Largest . | . . . . . Hottest . | . . . . . Shots Fired . | . . . . . Gun . | . . . . . Cannon . | . . . . . Launcher . | . . . . . Special . | . . . . . Kinetic . | . . . . . Thermal . | . . . . . Explosive . | . . . . . Electromagnetic . | . . . . . Robot Hit Streak . | . . . . . Robot Miss Streak . | . . . . . Penetration Max . | . . . . . Secondary Targets . | . . . . . Shots Hit Robots . | . . . . . Core Hits . | . . . . . Critical Hits . | . . . . . Critical Kills . | . . . . . Critical Parts Destroyed . | . . . . . Melee Attacks . | . . . . . Impact . | . . . . . Slashing . | . . . . . Piercing . | . . . . . Sneak Attacks . | . . . . . Combat Hostiles . | . . . . . Follow-up Attacks . | . . . . . Damage Inflicted . | . . . . . Guns . | . . . . . Cannons . | . . . . . Explosions . | . . . . . Melee . | . . . . . Ramming . | . . . . . Kinetic . | . . . . . Thermal . | . . . . . Explosive . | . . . . . Electromagnetic . | . . . . . Impact . | . . . . . Slashing . | . . . . . Piercing . | . . . . . Highest Corruption . | . . . . . Average Corruption . | . . . . . Corruption Purged . | . . . . . Overload Shots . | . . . . . Overflow Damage . | . . . . . Projectiles . | . . . . . Explosions . | . . . . . Melee . | . . . . . Knockbacks . | . . . . . Impact . | . . . . . Kinetic . | . . . . . Secondary . | . . . . . Self-Inflicted Damage . | . . . . . Shots . | . . . . . Rammed . | . . . . . Targets Rammed . | . . . . . Kicked . | . . . . . Crushed . | . . . . . Highest Temperature 11 | . . . . 11 Average Temperature 11 | . . . . 11 Received Heat Transfer 330 | . . 54 . 276 Siege Activations . | . . . . . Robots Corrupted . | . . . . . Combat Hostiles . | . . . . . Parts Fried . | . . . . . Impact Corruptions . | . . . . . Robots Melted . | . . . . . Combat Hostiles . | . . . . . Parts Melted . | . . . . . Heat Transferred . | . . . . . Parts Sabotaged . | . . . . . Parts Stolen . | . . . . . Parts Stripped . | . . . . . Power Chain Reactions . | . . . . . Missiles Intercepted . | . . . . . Alert | -11 -10 -9 -9 -8 ------- Run | Scr Mat Mat Min Mat Peak Influence 108 | . 11 34 13 108 Average Influence 49 | . 10 17 13 73 Maximum Alert Level . | . . . . . Low Security (%) 100 | 100 100 100 100 100 Level 1 . | . . . . . Level 2 . | . . . . . Level 3 . | . . . . . Level 4 . | . . . . . Level 5 . | . . . . . High Security . | . . . . . Max Security . | . . . . . Squads Dispatched 1 | . . . . 1 Investigation . | . . . . . Extermination . | . . . . . Reinforcement 1 | . . . . 1 Assault . | . . . . . Garrison . | . . . . . Intercept . | . . . . . Construction Impeded . | . . . . . Haulers Reinforced . | . . . . . Stealth | -11 -10 -9 -9 -8 --------- Run | Scr Mat Mat Min Mat Distress Signals 2 | . . 1 . 1 Communications Jammed . | . . . . . Distress Signals . | . . . . . Times Spotted 29 | . 3 3 . 23 Peak Tracking Total 10 | . 3 3 . 10 Tactical Retreats 5 | . . . . 5 Traps | -11 -10 -9 -9 -8 ------- Run | Scr Mat Mat Min Mat Traps Triggered . | . . . . . Indirectly . | . . . . . Trap Hack Attempts . | . . . . . Triggered . | . . . . . Disarmed . | . . . . . Reprogrammed . | . . . . . Reused . | . . . . . Traps Extracted . | . . . . . Installed . | . . . . . Triggered . | . . . . . Machines | -11 -10 -9 -9 -8 ---------- Run | Scr Mat Mat Min Mat Machines Disabled . | . . . . . Max in Single Turn . | . . . . . Machines Sabotaged . | . . . . . Garrisons Compromised . | . . . . . Overloaded Fab Kills . | . . . . . Fab Network Shutdowns . | . . . . . Hacking | -11 -10 -9 -9 -8 --------- Run | Scr Mat Mat Min Mat Machines Accessed 7 | . 1 . . 6 Terminals 6 | . 1 . . 5 Fabricators . | . . . . . Repair Stations 1 | . . . . 1 Recycling Units . | . . . . . Scanalyzers . | . . . . . Garrison Access . | . . . . . Total Hacks 39 | . 8 . . 31 Successful 29 | . 7 . . 22 Failed 10 | . 1 . . 9 Catastrophic 1 | . . . . 1 Database Lockouts . | . . . . . Manual 27 | . 6 . . 21 Terminals 35 | . 8 . . 27 Fabricators . | . . . . . Repair Stations 4 | . . . . 4 Recycling Units . | . . . . . Scanalyzers . | . . . . . Garrison Access . | . . . . . Terminal Hacks 11 | . 3 . . 8 Part Schematic 1 | . . . . 1 Prototype ID Bank 2 | . 1 . . 1 Level Access Points 2 | . . . . 2 Terminal Index 1 | . 1 . . . Locate Traps 2 | . 1 . . 1 Hauler Manifests 2 | . . . . 2 Registered Components 1 | . . . . 1 Fabricator Hacks . | . . . . . Repair Station Hacks 2 | . . . . 2 Scan Component 1 | . . . . 1 Repair 1 | . . . . 1 Recycling Unit Hacks . | . . . . . Scanalyzer . | . . . . . Garrison Access Hacks . | . . . . . Unauthorized Hacks 33 | . 9 . . 24 Terminals 15 | . 4 . . 11 Track 5 | . 1 . . 4 Botnet 5 | . 1 . . 4 Disrupt 3 | . 1 . . 2 Operators 2 | . 1 . . 1 Fabricators . | . . . . . Repair Stations 1 | . . . . 1 Mechanics 1 | . . . . 1 Recycling Units . | . . . . . Scanalyzers . | . . . . . Garrison Access . | . . . . . Data Cores Recovered . | . . . . . Used . | . . . . . Hacking Detections 6 | . 1 . . 5 Full Trace Events . | . . . . . Feedback Events . | . . . . . Feedback Blocked . | . . . . . Robot Schematics Acquired . | . . . . . Robots Built . | . . . . . Matter . | . . . . . Time . | . . . . . Total Robot Build Rating . | . . . . . Part Schematics Acquired 1 | . . . . 1 Parts Built . | . . . . . Matter . | . . . . . Time . | . . . . . Total Part Build Rating . | . . . . . Parts Repaired 1 | . . . . 1 Time 80 | . . . . 80 Parts Recycled . | . . . . . Recycled Matter . | . . . . . Retrieved Matter . | . . . . . Retrieved Components . | . . . . . Parts Scanalyzed . | . . . . . Part Schematics Acquired . | . . . . . Parts Damaged . | . . . . . Bothacking | -11 -10 -9 -9 -8 ------------ Run | Scr Mat Mat Min Mat Used RIF Installer . | . . . . . Robots Hacked . | . . . . . Non-combat . | . . . . . Combat . | . . . . . Robot Hacks Applied . | . . . . . Relay Couplers Released . | . . . . . Robots Rewired . | . . . . . Allies Hacked . | . . . . . Hacks Repelled . | . . . . . Allies | -11 -10 -9 -9 -8 -------- Run | Scr Mat Mat Min Mat Total Allies . | . . . . . Largest Group . | . . . . . Highest-Rated Group . | . . . . . Highest-Rated Ally . | . . . . . Total Orders . | . . . . . Ally Attacks . | . . . . . Total Damage . | . . . . . Kills . | . . . . . Allies Corrupted . | . . . . . Allies Melted . | . . . . . Intel | -11 -10 -9 -9 -8 ------- Run | Scr Mat Mat Min Mat Robot Analysis Total . | . . . . . Derelict Logs Recovered 1 | . . . 1 . Drone Launches . | . . . . . Drone Recoveries . | . . . . . Exploration | -11 -10 -9 -9 -8 ------------- Run | Scr Mat Mat Min Mat Turns Passed 444 | 11 39 50 78 266 Spaces Moved 718 | 22 77 94 153 372 Core 718 | 22 77 94 153 372 Treads . | . . . . . Legs . | . . . . . Wheels . | . . . . . Hover . | . . . . . Flight . | . . . . . Fastest Speed 50 | 50 50 50 50 50 Average Speed 50 | 50 50 50 50 50 Slowest Speed 50 | 50 50 50 50 50 Overloaded Moves . | . . . . . Propulsion Burnouts . | . . . . . Robots Hopped . | . . . . . Cave-ins Triggered . | . . . . . Exploration Rate (%) 27 | 3 24 15 51 43 Regions Visited 4 Branch Regions 1 Pre-discovered Areas 1 | . . . 1 . Known Exits Taken . | . . . . . Unknown Exits Taken 4 | 1 1 1 1 . Scrap Searched 1 | . . . 1 . Spaces Dug . | . . . . . Terrain Destroyed . | . . . . . Melee . | . . . . . Projectile . | . . . . . AOE . | . . . . . Actions | -11 -10 -9 -9 -8 --------- Run | Scr Mat Mat Min Mat Total 795 | 21 76 95 153 450 Wait 74 | . . 1 . 73 Move 714 | 21 76 93 152 372 Hop . | . . . . . Pick Up . | . . . . . Fast Attach 6 | . . 1 1 4 Attach . | . . . . . Detach . | . . . . . Swap . | . . . . . Drop 1 | . . . . 1 Fire . | . . . . . Melee . | . . . . . Ram . | . . . . . Kick . | . . . . . Crush . | . . . . . Escape Stasis . | . . . . . Rewire . | . . . . . Trap . | . . . . . Miscellaneous . | . . . . . Route ------- -11/Scrapyard -10/Materials -9/Materials -9/Mines -8/Materials (discovered 3 exits: *Fac x3) History --------- Turn | Location | Event 5 | -11/Scrapyard | Discovered new exit (range 15) 12 | -11/Scrapyard | Entered Materials 42 | -10/Materials | Discovered new exit (range 15) 51 | -10/Materials | Entered another Materials area 53 | -9/Materials | Reached level 2 91 | -9/Materials | Discovered new exit (range 14) 101 | -9/Materials | Entered Mines 132 | -9/Mines | Found a damaged Exp. Sensor Array with a note attached 133 | -9/Mines | Upgraded with Utility slot (x1) 133 | -9/Mines | Found Prototype Device 133 | -9/Mines | Identified Exp. Sensor Array 174 | -9/Mines | Learned location of Zion (-7) 175 | -9/Mines | Discovered new exit (range 9) 179 | -9/Mines | Entered Materials 181 | -8/Materials | Reached level 3 219 | -8/Materials | Identified exit to Factory 223 | -8/Materials | Upgraded with Utility slot (x1) 250 | -8/Materials | Core integrity fell below 50% 257 | -8/Materials | Core integrity fell below 20% 309 | -8/Materials | Build established: Hacker-Mutant 355 | -8/Materials | Repaired Exp. Sensor Array? 445 | -8/Materials | Destroyed by L-31 Rogue with Katana Last Messages --------------- 1x Adv. Beam Rifle 1x Imp. Flight Unit 3x Adv. EMP Blaster (2 escorts) >>Inventory(Components) Retrieving component inventory records... Found 2 registered component stockpiles: 9ZMMHIPT5S: Particle Cannon V6T6TYUU1X: Adv. Weight Redist. System Downloaded coordinate data. 00320_ Connecting with Terminal... 00355_ >> REPAIR: Completed Exp. Sensor Array? 00403_ C-30 ARC bursts open, deploying its payload. 00403_ L-31 Rogue unfolds itself. 00403_ G-47 Trooper unfolds itself. 00407_ Dropped Imp. Light Armor Plating. 00410_ Acquired Exp. Sensor Array. 00423_ Matter Filter disabled. 00431_ U-05 Engineer builds a Door. 00439_ K-01 Serf collects debris. Map ----- +----------------------------------------------------+ | # #?? ??# ######?# #??????????????????????? | | # #?? """???# #?######+#####??????????????????? | | # #?Y """ #?# #?# #??????????????????? | | # #?" """ ### ### """ #??????????????????? | | #k # t # # """r"R" #??????????????????? | | # # = """ # # """ " " #??????????????????? | | +w + """ + T /w """ kk #??????????????????? | | # # """ # # r k" #??????????????????? | | # # # # "%" = #??????????????????? | | # #?########## #########+######????????????????? | | # #??????????#m#?????# #????????????????? | | # ##########?# #?????# """"" #????????????????? | | # #?# #?????# """"" #????????????????? | | # ### ###???#m%%"""" # ???????????????? | | # # a #???# %""""" + ???????????????? | | ##### # #####a %"""" #????????????????? | | ????# + T gu / """"" #????????????????? | | ????# [| # ##### """"" #????????????????? | | ????# [| # #???# #????????????????? | | ????# [ ###+####??##/#######????????????????? | | ????# # #???#Y#??????????????????????? | | ????########## #???#g#??????????????????????? | | ?????????????# #???#g#??????????????????????? | | ?????????????# #???#g#??????????????????????? | | ?????????????# #???#l#??????????????????????? | | ?????????????# #???#@#??????????????????????? | | ?????????????########???#a#??????????????????????? | | ????????????????????????# #??????????????????????? | | ????????????????????????# #?Y????????????????????? | | ???????????????????????## ##?????????????????????? | | ???????????????????????# #?????????????????????? | | ???????????????????????# T #?????????????????????? | | ???????????????????????# #?????????????????????? | | ???????????????????????## #################??????? | | ????????????????????????# #??????? | | ????????????????????????# < #??????? | | ????????????????????????# #??????? | | ????????????????????????#####+########+#####?????? | | ????????????????????????# # #?????? | | ????????????????????????# ! #""" ""#?????? | | ????????????????????????# #""" ""#?????? | | ????????????????????????# """ """ #""" T"#?????? | | ????????????????????????# """ """ # ""#?????? | | ????????????????????????# """ """ #""" ""#?????? | | ????????????????????????# #""" * #?????? | | ????????????????????????#? #""" #?????? | | ??????????????????????????#######?# #?????? | | ??????????????????????????????????##########?????? | | ?????????????????????????????????????????????????? | | ?????????????????????????????????????????????????? | +----------------------------------------------------+ Best States ------------- Heat Dissipation 25 Energy Generation 15 Energy Capacity 100 Matter Stores 300 Matter Capacity 300 Sight Range 16 Robot Scan Range 40 Terrain Scan Density 10 ECM Strength 2 Armor Coverage 150 Core Shielding 20 Evasion (%) 50 Offensive Hacking 15 Defensive Hacking 15 Item Schematics ----------------- Imp. Flight Unit | -8/Materials | Hacked Robot Schematics ------------------ None Fabricated ------------ Nothing Alien Tech Used ----------------- None Achievements -------------- None Challenges ------------ None RPGLIKE | -11 -10 -9 -9 -8 --------- Run | Scr Mat Mat Min Mat Levels Raised 2 | . . 1 . 1 XP Earned 6800 | 3000 100 1500 635 1565 XP Spent 5950 | . 2700 . 500 2750 Upgrades 23 | . 12 . 1 10 Utility Slot 2 | . . . 1 1 Core Integrity 6 | . . . . 6 Energy Generation 2 | . . . . 2 Mass Support 2 | . 2 . . . Sensor Range 5 | . 5 . . . Hack Attack % 3 | . 3 . . . Hack Defense % 3 | . 2 . . 1 Protomatter Created . | . . . . . Protomatter Decayed . | . . . . . Game ------ Seed DecoderOverloadLog Manual? 0 Play Time 00:20:26 Cumulative 449.7 hours Start 2020.01.06 @ 17:06:15 End 2020.01.06 @ 17:29:46 Sessions 1 Manual Loads 0 Difficulty Rogue Special Mode Winter2019/RPGLIKE Game No. 128 Rogue 128 Adventurer 0 Explorer 0 Win Type - Total 1 Types 1/0/0/0/0/0/0 Lore% 67 Gallery% 75 Achievement% 49 Wizard Run 0 Options --------- ASCII 0 Keyboard 0 Movement Arrows Keybinds 0 Fullscreen 1 Font 12/Smallcaps Map View 83x54 Tactical HUD 1 Map Filters NONE Filters NONE Steam 1 RUN: 3c6f0a89-14e4-4bd6-9488-8e25df3f2a7b